bitfinex/quotes_ETHUSD_20240924
["timestamp","ask_amount","ask_price","bid_price","bid_amount"]
[1727166073829,0.0383633,2652.4,2652.3,12.16219265]
[1727166074858,0.0383633,2652.4,2652.3,12.7786994]
[1727166075726,0.0383633,2652.4,2652.3,7.32031]
[1727166075984,0.0383633,2652.4,2652.3,7.39570342]
[1727166076199,0.0383633,2652.4,2652.3,8.3975634]
[1727166076400,0.0383633,2652.4,2652.3,8.32216998]
[1727166076808,0.0383633,2652.4,2652.3,8.70750966]
[1727166077309,0.0383633,2652.4,2652.3,8.32216998]
[1727166079646,0.78609515,2652.8,2652.7,4.31974]
[1727166079799,1.1797703,2652.9,2652.8,4.31951]
[1727166079800,0.7729,2652.9,2652.8,4.31951]
[1727166080194,0.8112633,2653.1,2652.8,0.55]
[1727166080429,0.8112633,2653.1,2653.0,4.31931]
[1727166082213,0.0383633,2653.1,2653.0,4.31931]
[1727166082387,0.0383633,2653.1,2653.0,4.39468377]
[1727166086495,0.0383633,2653.1,2653.0,7.39468377]
[1727166090813,0.0383633,2653.1,2653.0,8.15668377]
[1727166091143,0.0383633,2653.1,2653.0,8.08131]
[1727166093834,0.0383633,2653.1,2653.0,55.35313537]
[1727166094146,0.0383633,2653.1,2653.0,26.38460358]
[1727166094344,0.0383633,2653.1,2653.0,25.681133]
[1727166094763,0.0383633,2653.1,2653.0,21.155982]
[1727166097340,0.0383633,2653.1,2653.0,19.306574]
[1727166101338,0.0383633,2653.1,2653.0,23.47393173]
[1727166102065,0.0383633,2653.1,2653.0,24.17675781]
[1727166102429,0.0383633,2653.1,2653.0,25.23070767]
[1727166102773,0.0383633,2653.1,2653.0,24.17675781]
[1727166102941,0.0383633,2653.1,2653.0,25.23014575]
[1727166103533,0.0383633,2653.1,2653.0,25.22915346]
[1727166105261,0.0383633,2653.1,2653.0,24.17602042]
[1727166105840,0.0383633,2653.1,2653.0,25.22863416]
[1727166106441,0.0383633,2653.1,2653.0,24.17602042]
[1727166108350,0.0383633,2653.1,2653.0,23.47393173]
[1727166110054,0.0383633,2653.1,2653.0,24.17535997]
[1727166112369,0.0383633,2653.1,2653.0,23.47393173]
[1727166116698,0.0383633,2653.1,2653.0,25.22602711]
[1727166117568,0.0383633,2653.9,2653.8,7.31818]
[1727166120573,0.0383633,2653.9,2653.8,6.76818]
[1727166122172,0.0383633,2653.9,2653.8,7.31818]
[1727166123296,0.0383633,2653.9,2653.8,31.87432814]
[1727166123511,0.0383633,2653.9,2653.8,25.981206]
[1727166123805,0.0383633,2653.9,2653.8,22.448216]
[1727166126899,0.0383633,2653.9,2653.8,23.237216]
[1727166127219,0.0383633,2653.9,2653.8,26.36023336]
[1727166127807,0.0383633,2653.9,2653.8,39.53037136]
[1727166129005,0.0383633,2653.9,2653.8,40.0390416]
[1727166129181,0.0383633,2653.9,2653.8,40.57471173]
[1727166131817,0.0383633,2653.9,2653.8,40.06604149]
[1727166133023,0.0383633,2653.9,2653.8,39.64829449]
[1727166133717,0.0383633,2653.9,2653.8,37.64872436]
[1727166134021,0.0383633,2653.9,2653.8,35.93473036]
[1727166134523,0.0383633,2653.9,2653.8,32.811713]
[1727166135092,0.0383633,2653.9,2653.8,32.040813]
[1727166135961,0.0383633,2653.9,2653.8,26.220418]
[1727166136129,0.8197633,2653.9,2653.8,13.341077]
[1727166136285,0.8197633,2653.9,2653.8,6.76818]
[1727166136731,0.8197633,2653.9,2653.8,18.87337]
[1727166137391,0.8197633,2653.9,2653.8,19.80792342]
[1727166137817,0.8197633,2653.9,2653.8,19.42337]
[1727166138017,0.0383633,2653.9,2653.8,19.42337]
[1727166138331,0.0383633,2653.9,2653.8,17.77099853]
[1727166143851,0.0383633,2653.9,2653.8,17.77096267]
[1727166145507,0.0383633,2653.9,2653.8,18.38608772]
[1727166145713,0.0383633,2653.9,2653.8,19.08821658]
[1727166146117,0.0383633,2653.9,2653.8,17.83608772]
[1727166146344,0.0383633,2653.9,2653.8,16.836539]
[1727166146850,0.0383633,2653.9,2653.8,17.83634758]
[1727166147349,0.0383633,2653.9,2653.8,17.22117655]
[1727166147551,0.0383633,2653.9,2653.8,17.77117655]
[1727166148246,0.0383633,2653.9,2653.8,14.47105255]
[1727166148548,0.0383633,2653.9,2653.8,12.61704255]
[1727166150339,0.0383633,2653.9,2653.8,14.85378752]
[1727166150842,0.0383633,2653.9,2653.8,44.39451452]
[1727166151254,0.0383633,2653.9,2653.8,45.09699519]
[1727166153963,0.0383633,2653.9,2653.8,45.09711417]
[1727166155158,0.0383633,2653.9,2653.8,44.71247662]
[1727166155347,0.0383633,2653.9,2653.8,44.71253162]
[1727166155520,0.0383633,2653.9,2653.8,45.09733452]
[1727166157125,0.0383633,2653.9,2653.8,46.1514174]
[1727166157326,0.0383633,2653.9,2653.8,45.09733452]
[1727166158234,0.0383633,2653.9,2653.8,46.15147531]
[1727166158633,0.0383633,2653.9,2653.8,45.09733452]
[1727166159546,0.0383633,2653.9,2653.8,46.15154251]
[1727166160328,0.0383633,2653.9,2653.8,46.1518806]
[1727166162756,0.0383633,2653.9,2653.8,45.7670777]
[1727166162959,0.0383633,2653.9,2653.8,46.15214156]
[1727166163324,0.0383633,2653.9,2653.8,46.53720641]
[1727166163536,0.0383633,2653.9,2653.8,46.53720895]
[1727166163939,0.0383633,2653.9,2653.8,47.32393666]
[1727166165275,0.0383633,2653.9,2653.8,47.32427108]
[1727166165865,0.0383633,2653.9,2653.8,58.71174022]
[1727166166454,0.0383633,2653.9,2653.8,57.78045322]
[1727166166772,0.0383633,2653.9,2653.8,57.78039868]
[1727166167070,0.0383633,2653.9,2653.8,58.28906892]
[1727166167266,0.0383633,2653.9,2653.8,57.90405607]
[1727166167570,2.28200827,2653.9,2653.8,0.38500655]
[1727166167730,6.3975174,2653.9,2653.8,0.38500655]
[1727166167937,3.37683595,2653.9,2653.8,0.38500655]
[1727166168241,2.53951957,2653.9,2653.8,4.15318655]
[1727166168628,2.53951391,2653.9,2653.8,4.15318655]
[1727166168831,2.53952746,2653.9,2653.8,4.15318655]
[1727166169257,0.8445633,2653.9,2653.8,4.15318655]
[1727166169457,0.8445633,2653.9,2653.8,4.77854055]
[1727166169665,0.8445633,2653.9,2653.8,4.77854104]
[1727166169861,0.8445633,2653.9,2653.8,7.70318655]
[1727166170064,0.8445633,2653.9,2653.8,7.31818]
[1727166170274,0.8445633,2653.9,2653.8,7.70332614]
[1727166170476,0.8445633,2653.9,2653.8,7.77867893]
[1727166170651,0.8445633,2653.9,2653.8,7.70332614]
[1727166171040,0.0383633,2653.9,2653.8,7.77867828]
[1727166171241,0.0383633,2653.9,2653.8,7.70332614]
[1727166171453,0.0383633,2653.9,2653.8,7.77867711]
[1727166171681,0.0383633,2653.9,2653.8,19.49573211]
[1727166171896,0.0383633,2653.9,2653.8,19.42038114]
[1727166172172,0.0383633,2653.9,2653.8,18.42224914]
[1727166173395,0.0383633,2653.9,2653.8,20.56269225]
[1727166173756,0.0383633,2653.9,2653.8,19.12524728]
[1727166173963,0.0383633,2653.9,2653.8,18.7400978]
[1727166174162,0.0383633,2653.9,2653.8,18.7400994]
[1727166174364,0.0383633,2653.9,2653.8,19.12504302]
[1727166177285,0.0383633,2653.9,2653.8,8.40612002]
[1727166177458,0.0383633,2653.9,2653.8,35.03576802]
[1727166178062,0.0383633,2653.9,2653.8,26.9107554]
[1727166178275,0.0383633,2653.9,2653.8,27.29572864]
[1727166179451,0.0383633,2653.9,2653.8,26.59273224]
[1727166179782,0.0383633,2653.9,2653.8,27.29580352]
[1727166179988,0.0383633,2653.9,2653.8,28.35040573]
[1727166180287,0.0383633,2653.9,2653.8,29.16690573]
[1727166180880,0.0383633,2653.9,2653.8,25.40676444]
[1727166181077,0.0383633,2653.9,2653.8,22.79530828]
[1727166181595,0.0383633,2653.9,2653.8,24.23480547]
[1727166182057,0.0383633,2653.9,2653.8,24.61976009]
[1727166183455,0.0383633,2653.9,2653.8,25.5973236]
[1727166183848,0.0383633,2653.9,2653.8,25.21236898]
[1727166184260,0.0383633,2653.9,2653.8,26.38450241]
[1727166184593,0.0383633,2653.9,2653.8,26.76949637]
[1727166184787,0.0383633,2653.9,2653.8,27.15424008]
[1727166185664,0.0383633,2653.9,2653.8,26.67806984]
[1727166185864,0.0383633,2653.9,2653.8,25.52315897]
[1727166186890,0.0383633,2653.9,2653.8,24.23484759]
[1727166187659,0.0383633,2653.9,2653.8,24.23441019]
[1727166187889,0.0383633,2653.9,2653.8,23.84944587]
[1727166188096,0.0383633,2653.9,2653.8,24.23430188]
[1727166190856,0.0383633,2653.9,2653.8,23.68430188]
[1727166191078,0.0383633,2653.9,2653.8,19.67243788]
[1727166191391,0.0383633,2653.9,2653.8,19.02759188]
[1727166191972,0.0383633,2653.9,2653.8,17.97326656]
[1727166192703,0.0383633,2653.9,2653.8,18.52751582]
[1727166193267,0.0383633,2653.9,2653.8,19.58808025]
[1727166195502,0.0383633,2653.9,2653.8,20.37499836]
[1727166195862,0.0383633,2653.9,2653.8,21.97907745]
[1727166196264,0.0383633,2653.9,2653.8,23.15841431]
[1727166197114,0.0383633,2653.9,2653.8,23.97491431]
[1727166197302,0.0383633,2653.9,2653.8,23.97355333]
[1727166197894,0.0383633,2653.9,2653.8,23.97323805]
[1727166198905,0.0383633,2653.9,2653.8,24.09984122]
[1727166199481,0.0383633,2653.9,2653.8,23.62330416]
[1727166199825,0.0383633,2653.9,2653.8,22.44433412]
[1727166200227,0.0383633,2653.9,2653.8,23.62315493]
[1727166200429,0.0383633,2653.9,2653.8,23.62312679]
[1727166200599,0.83016017,2654.7,2654.6,3.76704]
[1727166200600,0.0383633,2654.7,2654.6,3.76704]
[1727166200800,0.0383633,2654.7,2654.6,41.85747477]
[1727166201097,0.0383633,2654.7,2654.6,41.78214773]
[1727166201901,0.0383633,2654.7,2654.6,43.30390167]
[1727166202224,0.0383633,2654.7,2654.6,42.59826128]
[1727166202595,0.0383633,2654.7,2654.6,42.214107]
[1727166202799,0.0383633,2654.7,2654.6,42.59820788]
[1727166203010,0.0383633,2654.7,2654.6,43.3036072]
[1727166203205,0.0383633,2654.7,2654.6,42.59820788]
[1727166203596,0.0383633,2654.7,2654.6,42.72743142]
[1727166203798,0.0383633,2654.7,2654.6,42.59820788]
[1727166204297,0.0383633,2654.7,2654.6,43.36581735]
[1727166205103,0.0383633,2654.7,2654.6,45.12780482]
[1727166205441,0.0383633,2655.5,2655.4,8.13241]
[1727166205589,0.0383633,2655.5,2655.4,55.79733997]
[1727166206296,0.0383633,2655.5,2655.4,57.47803338]
[1727166206490,0.0383633,2655.5,2655.4,58.43930811]
[1727166206686,0.0383633,2655.5,2655.4,59.19158362]
[1727166206891,0.0383633,2655.5,2655.4,59.19168662]
[1727166207124,0.0383633,2655.5,2655.4,57.64481089]
[1727166207358,0.0383633,2655.5,2655.4,57.5599761]
[1727166207523,0.0383633,2655.5,2655.4,56.79294191]
[1727166208320,0.0383633,2655.5,2655.4,58.46490879]
[1727166208719,0.0383633,2655.5,2655.4,57.46930685]
[1727166208956,0.0383633,2655.5,2655.4,34.32598]
[1727166209110,0.0383633,2655.5,2655.4,37.81736482]
[1727166209624,0.0383633,2655.5,2655.4,38.42848809]
[1727166209841,0.0383633,2655.5,2655.4,38.04651512]
[1727166210523,0.0383633,2655.5,2655.4,38.59651512]
[1727166212021,0.0383633,2655.5,2655.4,39.58256017]
[1727166216537,0.0383633,2655.5,2655.4,38.48678512]
[1727166217120,0.0383633,2655.5,2655.4,37.67028512]
[1727166218816,0.0383633,2655.5,2655.4,38.1549369]
[1727166219546,0.0383633,2655.5,2655.4,57.6388519]
[1727166220755,0.0383633,2655.5,2655.4,58.4688519]
[1727166222220,0.0383633,2655.5,2655.4,57.98420012]
[1727166222920,0.0383633,2655.5,2655.4,58.4688519]
[1727166226270,0.0383633,2655.5,2655.4,54.52944005]
[1727166226473,0.0383633,2655.5,2655.4,25.500171]
[1727166231282,0.0383633,2655.5,2655.4,15.919739]
[1727166232584,0.0383633,2655.5,2655.4,16.90578405]
[1727166233775,0.0383633,2655.5,2655.4,16.42113227]
[1727166236381,0.0383633,2655.5,2655.4,16.90578405]
[1727166236762,0.0383633,2655.5,2655.4,17.66558405]
[1727166239403,0.0383633,2655.5,2655.4,17.79572488]
[1727166240300,0.0383633,2656.3,2656.2,3.76477]
[1727166240469,0.0383633,2656.3,2656.2,36.66096939]
[1727166240669,0.0383633,2656.3,2656.2,36.58569395]
[1727166242085,0.0383633,2656.3,2656.2,37.571739]
[1727166242306,0.0383633,2656.3,2656.2,37.68106324]
[1727166242514,0.0383633,2656.3,2656.2,36.58569395]
[1727166242680,0.0383633,2656.3,2656.2,37.19634933]
[1727166243467,0.0383633,2656.3,2656.2,37.68100111]
[1727166243903,0.0383633,2656.3,2656.2,38.44432706]
[1727166244212,0.0383633,2656.3,2656.2,39.13916489]
[1727166244367,0.0383633,2656.3,2656.2,40.11605762]
[1727166245588,0.0383633,2656.3,2656.2,59.33832762]
[1727166245992,0.0383633,2656.3,2656.2,58.85367584]
[1727166246437,0.0383633,2656.3,2656.2,58.85419791]
[1727166246604,0.0383633,2656.3,2656.2,58.09034989]
[1727166247430,0.0383633,2656.3,2656.2,58.85423685]
[1727166247993,0.0383633,2656.3,2656.2,59.35563012]
[1727166248195,0.0383633,2656.3,2656.2,59.8402819]
[1727166248679,0.0383633,2656.3,2656.2,60.53524701]
[1727166248813,0.0383633,2656.3,2656.2,59.8402819]
[1727166249020,0.0383633,2657.1,2657.0,8.14364]
[1727166249221,0.0383633,2657.1,2657.0,57.96321629]
[1727166249543,0.0383633,2657.1,2657.0,59.33775863]
[1727166249917,0.0383633,2657.9,2657.8,8.14251]
[1727166250236,0.0383633,2657.9,2657.8,47.35114363]
[1727166250536,0.0267266,2658.7,2657.8,43.58863363]
[1727166250707,0.0267266,2658.7,2658.6,4.31137]
[1727166250913,0.0267266,2658.7,2658.6,19.920307]
[1727166251262,0.0267266,2658.7,2658.6,7.31137]
[1727166251764,0.0267266,2658.7,2658.6,13.5844771]
[1727166251907,0.0267266,2658.7,2658.6,13.50926]
[1727166252251,3.90003638,2659.8,2658.9,3.76086]
[1727166252252,0.7825371,2659.3,2658.9,3.76086]
[1727166252485,0.7825371,2659.3,2658.7,0.55]
[1727166252486,3.88997661,2659.3,2659.0,0.55]
[1727166252623,0.7632,2659.2,2659.0,0.55]
[1727166252827,0.7632,2659.2,2658.8,3.0]
[1727166252828,0.7632,2659.2,2658.9,0.55]
[1727166253016,0.7632,2659.1,2658.9,0.55]
[1727166253710,0.7632,2659.1,2658.8,0.55]
[1727166254336,0.0193371,2659.3,2658.6,0.55]
[1727166254337,0.7632,2659.2,2658.6,0.55]
[1727166254536,0.7632,2659.2,2659.1,0.55]
[1727166254951,0.7632,2659.2,2659.1,4.31067]
[1727166255129,0.7632,2659.2,2659.1,0.55]
[1727166255749,0.7632,2659.2,2659.0,0.55]
[1727166255956,0.7632,2659.2,2658.9,0.55]
[1727166256317,3.12677661,2659.3,2658.2,4.34139327]
[1727166256318,0.7632,2659.0,2658.5,6.76147]
[1727166256553,0.7632,2659.0,2658.5,3.0]
[1727166256915,0.7632,2659.0,2658.6,3.76137]
[1727166257571,0.7632,2659.0,2658.6,0.55]
[1727166258073,0.7632,2659.0,2658.7,3.76121]
[1727166258229,0.7632,2659.0,2658.6,4.31135]
[1727166258427,0.7632,2659.0,2658.7,3.76119]
[1727166258726,0.7632,2659.0,2658.8,4.31108]
[1727166259232,0.7632,2659.0,2658.8,4.31099]
[1727166259529,0.7632,2659.0,2658.9,3.76095]
[1727166259743,0.7632,2659.0,2658.9,4.31095]
[1727166262053,0.7632,2659.0,2658.7,3.76121]
[1727166262249,0.7632,2659.0,2658.8,0.55]
[1727166262667,0.7632,2659.0,2658.6,3.0]
[1727166262866,0.7632,2658.8,2658.6,0.55]
[1727166263072,0.7632,2658.8,2658.6,4.31136]
[1727166264019,0.7632,2658.8,2658.7,3.76123]
[1727166264348,0.7632,2658.8,2658.7,4.31123]
[1727166264548,0.7632,2658.8,2658.7,4.38644898]
[1727166264772,0.0193371,2659.3,2658.7,0.55]
[1727166265094,0.7632,2659.2,2659.1,4.31066]
[1727166265295,0.7632,2659.2,2659.0,0.55]
[1727166265795,0.7632,2659.2,2658.9,3.76084]
[1727166266777,0.7632,2659.2,2658.7,3.76116]
[1727166266979,0.7632,2659.1,2658.7,3.76116]
[1727166267178,0.76312295,2659.0,2658.7,3.76116]
[1727166267858,0.76312295,2659.0,2658.8,3.76095]
[1727166268053,0.7632,2659.1,2658.7,3.76114]
[1727166268460,3.10743951,2659.0,2658.6,4.31132]
[1727166268759,0.7632,2658.9,2658.6,0.55]
[1727166269900,0.7632,2658.9,2658.7,3.76123]
[1727166270201,0.7632,2658.9,2658.6,0.55]
[1727166270787,0.7632,2658.9,2658.5,3.76151]
[1727166270977,0.38706395,2658.8,2658.6,0.55]
[1727166271179,0.38706395,2658.8,2658.6,4.31137]
[1727166271590,0.38706395,2658.8,2658.6,0.55]
[1727166271907,0.7584,2658.7,2658.6,0.55]
[1727166272203,0.7584,2658.7,2658.4,3.76165]
[1727166272406,1.55979235,2658.7,2658.4,3.76165]
[1727166272592,1.55979235,2658.7,2658.4,0.55]
[1727166272991,5.32104235,2658.7,2658.2,3.76186]
[1727166273308,0.7584,2658.3,2657.9,3.76225]
[1727166273466,0.38658395,2658.2,2657.9,7.52454]
[1727166273668,0.38658395,2658.2,2657.9,3.76225]
[1727166273902,0.38658395,2658.2,2658.1,3.76208]
[1727166274078,0.7584,2658.3,2658.2,3.76194]
[1727166274905,0.7584,2658.3,2658.2,4.31194]
[1727166284015,0.7584,2658.6,2658.4,3.76159]
[1727166284212,0.7584,2658.6,2658.4,3.76156]
[1727166284449,0.7584,2658.8,2658.7,3.76123]
[1727166285012,0.7584,2659.1,2658.9,3.76087]
[1727166285817,1.22609735,2659.1,2659.0,4.31081]
[1727166286020,0.0193371,2659.3,2659.2,4.31052]
[1727166290368,0.0193371,2659.3,2658.9,3.76084]
[1727166290515,3.93343951,2659.2,2658.7,6.76114]
[1727166290716,0.39527766,2659.1,2658.8,3.76101]
[1727166291164,3.10743951,2659.0,2658.7,3.76114]
[1727166292543,3.89923638,2659.0,2658.7,3.76114]
[1727166293863,0.90473139,2658.9,2658.7,3.76114]
[1727166294070,3.89923638,2659.0,2658.7,3.76114]
[1727166294239,0.79179687,2658.8,2658.5,3.76141]
[1727166294565,0.79179687,2658.7,2658.5,3.76141]
[1727166294765,0.9053531,2658.6,2658.5,3.76141]
[1727166295563,0.79179687,2658.7,2658.5,3.76141]
[1727166295761,0.90547145,2658.6,2658.5,3.76141]
[1727166295932,0.79179687,2658.7,2658.5,3.76141]
[1727166297340,1.28549547,2658.7,2658.5,3.76141]
[1727166298564,1.28549547,2658.7,2658.4,3.0]
[1727166298767,1.28549547,2658.7,2658.5,3.76144]
[1727166300189,0.79179687,2658.7,2658.6,3.76137]
[1727166300422,1.61779687,2658.9,2658.7,3.76123]
[1727166300545,0.79179687,2658.9,2658.8,4.31109]
[1727166300753,0.90549558,2658.9,2658.8,4.31109]
[1727166300977,0.79179687,2658.9,2658.8,4.31109]
[1727166301243,1.69729245,2658.9,2658.8,4.31109]
[1727166301538,0.79179687,2659.0,2658.9,3.76095]
[1727166301663,1.69731773,2659.0,2658.9,4.31095]
[1727166301860,0.79179687,2659.1,2659.0,4.31081]
[1727166302048,1.69730034,2659.1,2659.0,4.31081]
[1727166302561,0.821,2659.0,2658.7,3.76113]
[1727166302762,0.78842805,2658.9,2658.7,3.76113]
[1727166303071,0.78842805,2658.9,2658.8,3.76109]
[1727166303451,1.693978,2658.9,2658.8,4.31109]
[1727166303653,0.78842805,2659.0,2658.9,3.76095]
[1727166303884,1.69389953,2659.0,2658.9,3.76095]
[1727166304284,1.69389735,2659.0,2658.9,4.31095]
[1727166304661,1.18772844,2659.2,2659.0,4.31081]
[1727166304662,0.78842805,2659.1,2659.0,4.31081]
[1727166305360,1.69386655,2659.1,2659.0,4.31081]
[1727166306959,2.6236838,2659.1,2658.9,3.76095]
[1727166307159,1.69379337,2659.0,2658.9,4.31095]
[1727166308287,1.69379337,2659.0,2658.8,0.55]
[1727166308462,1.69379337,2659.0,2658.9,4.31095]
[1727166309755,1.7264385,2659.0,2658.6,3.0]
[1727166309965,1.69380833,2658.9,2658.7,3.76113]
[1727166310169,1.69380833,2658.9,2658.8,3.76109]
[1727166310401,0.78836983,2659.0,2658.9,3.76095]
[1727166310555,1.69382197,2659.0,2658.9,3.76095]
[1727166310993,1.69382197,2659.0,2658.9,4.31095]
[1727166311705,0.78836983,2659.1,2659.0,4.31081]
[1727166311995,1.69087228,2659.1,2659.0,4.31081]
[1727166312878,1.72928088,2659.1,2659.0,4.31081]
[1727166313209,0.821,2659.0,2658.8,3.0]
[1727166313413,0.90287808,2658.9,2658.8,4.31109]
[1727166313632,1.60936983,2659.0,2658.8,4.31109]
[1727166313782,1.69122308,2658.9,2658.8,4.31109]
[1727166313990,1.69122308,2658.9,2658.6,6.76137]
[1727166314192,0.78836983,2658.9,2658.5,0.55]
[1727166314516,0.82677843,2659.0,2658.8,4.31109]
[1727166314689,0.82677843,2659.0,2658.9,4.31095]
[1727166315012,1.72959257,2659.0,2658.9,4.31095]
[1727166315374,0.94122274,2659.0,2658.9,4.31095]
[1727166315582,1.72959257,2659.0,2658.9,4.31095]
[1727166317511,1.72959257,2659.0,2658.8,7.52218]
[1727166317700,1.20061053,2659.0,2658.9,3.76095]
[1727166318086,2.10336356,2659.0,2658.8,3.76109]
[1727166318417,1.69119651,2658.9,2658.8,7.52208]
[1727166318601,1.69116555,2658.9,2658.8,7.52208]
[1727166318989,1.69116555,2658.9,2658.8,3.76099]
[1727166319195,0.7764,2658.8,2658.6,3.76124]
[1727166319398,0.7764,2658.8,2658.6,8.07254]
[1727166319399,1.56475699,2658.8,2658.6,8.07254]
[1727166319619,1.96412844,2658.8,2658.7,3.76123]
[1727166319807,2.86710423,2658.8,2658.7,3.76123]
[1727166320701,2.86710423,2658.8,2658.6,4.31137]
[1727166320902,1.69148881,2658.7,2658.6,4.31137]
[1727166323487,0.90334102,2658.7,2658.6,4.31137]
[1727166325212,2.09106946,2658.7,2658.5,3.76141]
[1727166325434,1.69219514,2658.6,2658.5,3.76141]
[1727166328121,1.69219514,2658.6,2658.5,4.31141]
[1727166328325,0.78885412,2658.7,2658.6,4.31137]
[1727166328626,1.69282291,2658.7,2658.6,4.31137]
[1727166328824,0.78885412,2658.7,2658.6,4.31137]
[1727166329039,1.69282291,2658.7,2658.6,4.31137]
[1727166330991,2.09169723,2658.7,2658.6,4.31137]
[1727166333208,2.09210641,2658.7,2658.6,4.31137]
[1727166333550,2.79574544,2658.7,2658.5,3.76141]
[1727166333711,2.08900038,2658.6,2658.5,3.76141]
[1727166333912,2.08900038,2658.6,2658.5,4.31141]
[1727166334306,1.18462241,2658.6,2658.5,4.31141]
[1727166334636,2.08923632,2658.6,2658.5,4.31141]
[1727166335138,0.90448605,2658.6,2658.5,4.31141]
[1727166335504,2.08923632,2658.6,2658.5,4.82189512]
[1727166336215,2.08923632,2658.6,2658.5,5.20451813]
[1727166336538,2.08923632,2658.6,2658.5,4.69403301]
[1727166336960,0.78990497,2658.7,2658.6,7.31137]
[1727166337104,0.7652,2658.7,2658.6,4.14399301]
[1727166337305,0.7652,2658.7,2658.6,0.55]
[1727166337306,2.85466041,2658.7,2658.6,0.55]
[1727166337603,1.66991014,2658.7,2658.6,4.31137]
[1727166337921,3.25315309,2658.7,2658.6,4.31137]
[1727166338099,3.25315309,2658.7,2658.5,3.76144]
[1727166338100,5.10286502,2658.7,2658.5,3.76144]
[1727166338300,3.69432281,2658.6,2658.5,3.76144]
[1727166339159,1.69469005,2658.6,2658.5,8.48325133]
[1727166339356,0.78997344,2658.7,2658.6,7.31137]
[1727166339649,1.69460861,2658.7,2658.6,7.69398133]
[1727166340253,1.69460861,2658.7,2658.6,7.31137]
[1727166340447,1.69460861,2658.7,2658.6,7.69389642]
[1727166342089,0.78997344,2658.8,2658.7,4.31123]
[1727166342274,1.69462846,2658.8,2658.7,4.69375642]
[1727166343608,1.69462846,2658.8,2658.7,4.31123]
[1727166343806,1.69462846,2658.8,2658.7,4.6937595]
[1727166344167,1.69462846,2658.8,2658.7,4.31123]
[1727166344899,1.69462846,2658.8,2658.7,4.69374761]
[1727166345103,2.08961515,2658.8,2658.7,4.69374761]
[1727166345419,2.08961515,2658.8,2658.7,4.31123]
[1727166345712,2.11102497,2658.8,2658.7,4.31123]
[1727166345920,2.7630701,2658.8,2658.5,3.76148]
[1727166346219,2.7630701,2658.8,2658.1,3.76201]
[1727166346220,0.8129,2658.5,2658.4,3.76159]
[1727166346380,2.90259274,2658.5,2658.4,4.14420487]
[1727166346581,2.90259274,2658.5,2658.4,3.76159]
[1727166346801,3.3007915,2658.5,2658.4,3.76159]
[1727166347094,4.5072075,2658.5,2658.4,3.76159]
[1727166347278,4.50732926,2658.5,2658.3,7.52352]
[1727166347479,2.11119278,2658.4,2658.3,3.76172]
[1727166347714,3.69442926,2658.4,2658.3,3.76172]
[1727166348582,2.11119278,2658.4,2658.3,4.31172]
[1727166348920,4.20543041,2658.4,2657.8,0.775]
[1727166349102,0.78993255,2658.2,2658.1,4.31208]
[1727166349305,1.69470933,2658.2,2658.1,7.31208]
[1727166349884,1.69470933,2658.2,2658.1,4.31208]
[1727166351746,2.08967561,2658.2,2658.0,3.76222]
[1727166351947,1.694447,2658.1,2658.0,3.76222]
[1727166352245,1.694447,2658.1,2658.0,6.76222]
[1727166353142,1.694447,2658.1,2658.0,7.31222]
[1727166353445,0.78967022,2658.5,2658.1,7.31208]
[1727166353619,0.78967022,2658.4,2658.3,7.3118]
[1727166353950,2.08933692,2658.4,2658.3,6.7618]
[1727166354200,0.8129,2658.3,2658.2,3.76192]
[1727166354321,2.50673851,2658.3,2658.2,3.76192]
[1727166354531,1.71733809,2658.3,2658.2,3.76192]
[1727166355353,1.69379367,2658.3,2658.2,7.31192]
[1727166355549,0.78935558,2658.4,2658.3,4.3118]
[1727166355706,1.68943408,2658.4,2658.3,4.3118]
[1727166355906,0.9000785,2658.4,2658.3,4.3118]
[1727166356108,0.78931672,2658.4,2658.3,4.3118]
[1727166356406,2.50229522,2658.4,2658.3,4.3118]
[1727166356951,1.71295322,2658.4,2658.3,4.3118]
[1727166357156,2.50226801,2658.4,2658.3,4.3118]
[1727166357325,3.34005229,2658.4,2658.2,6.76192]
[1727166357643,1.68936801,2658.3,2658.2,7.52384]
[1727166357843,2.83558311,2658.4,2658.3,3.7618]
[1727166357844,0.78931479,2658.4,2658.3,3.7618]
[1727166358053,0.78931479,2658.5,2658.4,3.76166]
[1727166358209,1.68929298,2658.5,2658.4,3.76166]
[1727166359355,0.78931479,2658.6,2658.5,3.76151]
[1727166359505,0.78931479,2658.6,2658.5,4.31151]
[1727166359851,0.78931479,2658.8,2658.7,4.352]
[1727166360054,0.82772339,2659.0,2658.9,0.55]
[1727166360255,1.72768637,2659.0,2658.9,0.55]
[1727166360460,1.72768637,2659.0,2658.9,4.31095]
[1727166360609,1.72768637,2659.0,2658.9,7.31095]
[1727166360811,1.72765531,2659.0,2658.9,7.31095]
[1727166361506,0.0384086,2659.0,2658.9,8.11295]
[1727166361938,0.0384086,2659.0,2658.9,7.31095]
[1727166363818,2.12302772,2659.0,2658.9,0.55]
[1727166364023,2.12302772,2659.0,2658.8,3.76101]
[1727166364239,1.68881899,2658.9,2658.8,3.76101]
[1727166364409,0.89972029,2658.9,2658.8,3.76101]
[1727166364616,1.68882451,2658.9,2658.8,3.76101]
[1727166364843,0.0384086,2659.0,2658.9,3.76095]
[1727166365041,0.82749436,2659.0,2658.9,3.76095]
[1727166365358,1.72728007,2659.0,2658.9,4.31095]
[1727166366525,0.93819431,2659.0,2658.9,4.31095]
[1727166366741,5.44166483,2659.0,2658.4,3.76158]
[1727166366941,4.7162132,2658.6,2658.3,3.76169]
[1727166367154,4.7162132,2658.6,2658.0,0.802]
[1727166367155,1.68889164,2658.5,2658.0,0.802]
[1727166367351,1.68889164,2658.5,2658.2,3.76184]
[1727166367554,0.8197,2658.2,2657.9,0.36993123]
[1727166367716,0.8197,2658.2,2657.6,0.39332506]
[1727166367717,0.78922233,2658.0,2657.7,0.36993123]
[1727166367918,0.78922233,2657.9,2657.6,3.76268]
[1727166368126,0.78922233,2657.9,2657.4,4.13293123]
[1727166368127,0.8197,2657.7,2657.4,4.13293123]
[1727166368328,0.8197,2657.7,2657.2,0.802]
[1727166368329,3.89666184,2657.5,2657.2,0.36993123]
[1727166368663,3.10743951,2657.3,2657.1,3.76348]
[1727166368828,3.89666184,2657.5,2657.1,3.76348]
[1727166369033,3.89666184,2657.5,2656.7,0.802]
[1727166369034,0.78922233,2657.5,2657.2,3.76333]
[1727166369273,0.78922233,2657.8,2657.2,4.941553]
[1727166369437,0.78922233,2658.0,2657.7,3.76265]
[1727166369637,0.78922233,2658.0,2657.9,3.76236]